[Event "*** Titled Tuesday 3|2 Blitz"]
[Site "Chess.com"]
[Date "2015.08.04"]
[Round "3"]
[White "NowInChess"]
[Black "drifblim"]
[Result "0-1"]
[WhiteElo "1964"]
[BlackElo "2057"]
[TimeControl "180+2"]
[EndTime "12:05:04 PDT"]
[Termination "drifblim won by resignation"]

1. e4 {[%clk 0:03:01.9]} 1... e6 {[%clk 0:03:00.5]} 2. d3 {[%clk 0:03:02.1]}
2... c5 {[%clk 0:03:00.3]} 3. g3 {[%clk 0:03:02.2]} 3... Nc6 {[%clk 0:03:01.7]}
4. Bg2 {[%clk 0:03:03.4]} 4... d6 {[%clk 0:03:03.1]} 5. f4 {[%clk 0:03:04.1]}
5... g6 {[%clk 0:03:04.4]} 6. Nf3 {[%clk 0:03:05.6]} 6... Bg7 {[%clk 0:03:05.8]}
7. O-O {[%clk 0:03:07.1]} 7... Nge7 {[%clk 0:03:07.2]} 8. c3 {[%clk 0:03:08.7]}
8... O-O {[%clk 0:03:08.3]} 9. Be3 {[%clk 0:03:10.1]} 9... Rb8 {[%clk
0:03:09.7]} 10. d4 {[%clk 0:03:11.3]} 10... cxd4 {[%clk 0:03:05.8]} 11. cxd4
{[%clk 0:03:13.2]} 11... f5 {[%clk 0:03:00.5]} 12. e5 {[%clk 0:03:01.2]} 12...
Nd5 {[%clk 0:03:00.8]} 13. Bf2 {[%clk 0:02:57]} 13... Bd7 {[%clk 0:02:54.5]} 14.
Nc3 {[%clk 0:02:52.5]} 14... Nxc3 {[%clk 0:02:52.3]} 15. bxc3 {[%clk 0:02:53]}
15... dxe5 {[%clk 0:02:53.6]} 16. dxe5 {[%clk 0:02:44.1]} 16... Qe7 {[%clk
0:02:45.1]} 17. Qe2 {[%clk 0:02:06.7]} 17... Rfc8 {[%clk 0:02:39.2]} 18. Rfd1
{[%clk 0:02:05.9]} 18... a6 {[%clk 0:02:36.4]} 19. Rd6 {[%clk 0:02:03.1]} 19...
Na5 {[%clk 0:02:33.8]} 20. Rad1 {[%clk 0:01:57.6]} 20... Bb5 {[%clk 0:02:34.2]}
21. Qc2 {[%clk 0:01:33.9]} 21... Nc4 {[%clk 0:02:30.7]} 22. R6d4 {[%clk
0:01:11.7]} 22... h6 {[%clk 0:02:22.6]} 23. a4 {[%clk 0:00:58.2]} 23... Be8
{[%clk 0:02:13.6]} 24. Qb3 {[%clk 0:00:55.8]} 24... b5 {[%clk 0:02:12.9]} 25.
axb5 {[%clk 0:00:44.9]} 25... Rxb5 {[%clk 0:02:06.6]} 26. Qa2 {[%clk 0:00:42.1]}
26... Ra5 {[%clk 0:01:44.7]} 27. Qb3 {[%clk 0:00:39.2]} 27... Ba4 {[%clk
0:01:42.1]} 28. Rxc4 {[%clk 0:00:34.8]} 28... Bxb3 {[%clk 0:01:37.9]} 29. Rxc8+
{[%clk 0:00:35.4]} 29... Kh7 {[%clk 0:01:36.8]} 30. h4 {[%clk 0:00:18.2]} 30...
Bxd1 {[%clk 0:01:34.8]} 0-1

[Event "*** Titled Tuesday 3|2 Blitz"]
[Site "Chess.com"]
[Date "2015.08.04"]
[Round "3"]
[White "WarlordX"]
[Black "Bab3s"]
[Result "1-0"]
[WhiteElo "2193"]
[BlackElo "2113"]
[TimeControl "180+2"]
[EndTime "12:05:36 PDT"]
[Termination "WarlordX won by resignation"]

1. d4 {[%clk 0:03:01.9]} 1... Nf6 {[%clk 0:03:00.9]} 2. c4 {[%clk 0:03:03.2]}
2... e6 {[%clk 0:03:02.1]} 3. Nc3 {[%clk 0:03:04.3]} 3... Bb4 {[%clk 0:03:02.5]}
4. Nf3 {[%clk 0:03:02.8]} 4... O-O {[%clk 0:03:00.6]} 5. Bg5 {[%clk 0:03:02.9]}
5... c5 {[%clk 0:02:58]} 6. e3 {[%clk 0:03:03.3]} 6... cxd4 {[%clk 0:02:53]} 7.
exd4 {[%clk 0:03:04.1]} 7... h6 {[%clk 0:02:52.7]} 8. Bh4 {[%clk 0:03:03.7]}
8... d5 {[%clk 0:02:15.3]} 9. cxd5 {[%clk 0:02:59.3]} 9... exd5 {[%clk
0:02:15.1]} 10. Bd3 {[%clk 0:03:00.9]} 10... Nc6 {[%clk 0:02:12.2]} 11. O-O
{[%clk 0:03:00.1]} 11... Bxc3 {[%clk 0:02:04.7]} 12. bxc3 {[%clk 0:03:01]} 12...
Bg4 {[%clk 0:01:59.1]} 13. h3 {[%clk 0:03:02]} 13... Bh5 {[%clk 0:01:58.4]} 14.
Rb1 {[%clk 0:03:02.6]} 14... b6 {[%clk 0:01:58.4]} 15. Re1 {[%clk 0:03:00.9]}
15... Bg6 {[%clk 0:01:52.2]} 16. Bxg6 {[%clk 0:02:59.7]} 16... fxg6 {[%clk
0:01:53.6]} 17. Qa4 {[%clk 0:03:01.2]} 17... Qd7 {[%clk 0:01:46.2]} 18. Qc2
{[%clk 0:02:46.5]} 18... Ne4 {[%clk 0:01:33.1]} 19. c4 {[%clk 0:02:47.1]} 19...
Rae8 {[%clk 0:01:05.6]} 20. Rbc1 {[%clk 0:02:44.7]} 20... Re6 {[%clk 0:00:24.1]}
21. Qb3 {[%clk 0:02:09.3]} 21... Na5 {[%clk 0:00:23.5]} 22. Qb5 {[%clk
0:02:03.6]} 22... Qxb5 {[%clk 0:00:21.2]} 23. cxb5 {[%clk 0:02:05.5]} 23... Nc4
{[%clk 0:00:16.7]} 24. Bg3 {[%clk 0:02:03]} 24... Rfe8 {[%clk 0:00:13.9]} 25.
Be5 {[%clk 0:02:01.1]} 25... Ned6 {[%clk 0:00:06.5]} 26. a4 {[%clk 0:01:48.5]}
26... Nf5 {[%clk 0:00:07.3]} 27. g4 {[%clk 0:01:45.2]} 27... Nxe5 {[%clk
0:00:06.6]} 28. dxe5 {[%clk 0:01:38.4]} 28... d4 {[%clk 0:00:02.6]} 29. gxf5
{[%clk 0:01:38.9]} 29... gxf5 {[%clk 0:00:04.5]} 30. Rcd1 {[%clk 0:01:37]} 30...
Rg6+ {[%clk 0:00:04.4]} 31. Kf1 {[%clk 0:01:38]} 31... Rd8 {[%clk 0:00:06.3]}
32. Rxd4 {[%clk 0:01:37.8]} 32... Rxd4 {[%clk 0:00:06.6]} 33. Nxd4 {[%clk
0:01:39.7]} 33... Rg5 {[%clk 0:00:06.8]} 34. e6 {[%clk 0:01:40.5]} 34... Kf8
{[%clk 0:00:07.6]} 35. e7+ {[%clk 0:01:37.3]} 35... Ke8 {[%clk 0:00:08.7]} 36.
Ne6 {[%clk 0:01:38.9]} 1-0

[Event "*** Titled Tuesday 3|2 Blitz"]
[Site "Chess.com"]
[Date "2015.08.04"]
[Round "3"]
[White "LyonBeast"]
[Black "Janosik"]
[Result "1-0"]
[WhiteElo "2702"]
[BlackElo "2522"]
[TimeControl "180+2"]
[EndTime "12:05:39 PDT"]
[Termination "LyonBeast won by resignation"]

1. d4 {[%clk 0:03:01.9]} 1... Nf6 {[%clk 0:02:59.9]} 2. c4 {[%clk 0:03:02.4]}
2... e6 {[%clk 0:03:01.3]} 3. Nf3 {[%clk 0:03:03]} 3... d5 {[%clk 0:03:00.7]} 4.
Nc3 {[%clk 0:03:03.7]} 4... dxc4 {[%clk 0:03:00.8]} 5. e4 {[%clk 0:03:03.5]}
5... Bb4 {[%clk 0:03:01.8]} 6. Bxc4 {[%clk 0:03:04.6]} 6... Nxe4 {[%clk
0:03:01.5]} 7. O-O {[%clk 0:03:05.5]} 7... Nxc3 {[%clk 0:03:02.7]} 8. bxc3
{[%clk 0:03:07.4]} 8... Be7 {[%clk 0:03:04.6]} 9. Ne5 {[%clk 0:03:04.6]} 9...
Nd7 {[%clk 0:02:54.6]} 10. Qg4 {[%clk 0:02:45.1]} 10... O-O {[%clk 0:02:49.9]}
11. Bh6 {[%clk 0:02:45.8]} 11... Bf6 {[%clk 0:02:44.7]} 12. Rad1 {[%clk
0:02:45.9]} 12... Kh8 {[%clk 0:02:36.7]} 13. Bc1 {[%clk 0:02:36.9]} 13... Qe7
{[%clk 0:02:02.5]} 14. Rfe1 {[%clk 0:02:37.7]} 14... g6 {[%clk 0:01:10]} 15. Rd3
{[%clk 0:02:24]} 15... Nxe5 {[%clk 0:01:03.9]} 16. dxe5 {[%clk 0:02:22.9]} 16...
Bg7 {[%clk 0:01:05.3]} 17. Rh3 {[%clk 0:02:05.7]} 17... Kg8 {[%clk 0:00:52.1]}
18. Bg5 {[%clk 0:01:57.1]} 18... f6 {[%clk 0:00:53]} 19. exf6 {[%clk 0:01:53.4]}
19... Bxf6 {[%clk 0:00:53.5]} 20. Bh6 {[%clk 0:01:34.1]} 20... Bg7 {[%clk
0:00:45.9]} 21. Bc1 {[%clk 0:01:31.3]} 21... Bd7 {[%clk 0:00:42.4]} 22. Rxe6
{[%clk 0:01:13.7]} 22... Bxe6 {[%clk 0:00:25.8]} 23. Bxe6+ {[%clk 0:01:15.6]}
23... Rf7 {[%clk 0:00:22.6]} 24. Bg5 {[%clk 0:01:13.5]} 24... Qd6 {[%clk
0:00:11.4]} 25. Bxf7+ {[%clk 0:01:10.2]} 25... Kxf7 {[%clk 0:00:13.1]} 26. Qc4+
{[%clk 0:01:08.7]} 1-0

[Event "*** Titled Tuesday 3|2 Blitz"]
[Site "Chess.com"]
[Date "2015.08.04"]
[Round "3"]
[White "GMG"]
[Black "Imre91"]
[Result "0-1"]
[WhiteElo "2398"]
[BlackElo "2606"]
[TimeControl "180+2"]
[EndTime "12:05:40 PDT"]
[Termination "Imre91 won by resignation"]

1. Nf3 {[%clk 0:03:01.9]} 1... Nf6 {[%clk 0:02:59.7]} 2. d4 {[%clk 0:03:03.2]}
2... d5 {[%clk 0:03:00.4]} 3. c4 {[%clk 0:03:01.7]} 3... c6 {[%clk 0:03:01.5]}
4. e3 {[%clk 0:03:01.4]} 4... g6 {[%clk 0:02:59.9]} 5. Nc3 {[%clk 0:02:59.9]}
5... Bg7 {[%clk 0:03:00.9]} 6. Bd3 {[%clk 0:02:59.5]} 6... O-O {[%clk
0:03:01.7]} 7. h3 {[%clk 0:03:01]} 7... a6 {[%clk 0:03:03]} 8. a4 {[%clk
0:02:59.2]} 8... a5 {[%clk 0:03:03.6]} 9. O-O {[%clk 0:02:59.5]} 9... Na6 {[%clk
0:03:04.5]} 10. Bd2 {[%clk 0:02:37.3]} 10... Nb4 {[%clk 0:03:05.1]} 11. Be2
{[%clk 0:02:38.8]} 11... Bf5 {[%clk 0:03:04.8]} 12. Rc1 {[%clk 0:02:38.3]} 12...
Nd3 {[%clk 0:02:56.7]} 13. Rb1 {[%clk 0:02:37.7]} 13... dxc4 {[%clk 0:02:56.4]}
14. Nh4 {[%clk 0:02:34.1]} 14... Be6 {[%clk 0:02:55.3]} 15. b3 {[%clk 0:02:34]}
15... c5 {[%clk 0:02:47]} 16. bxc4 {[%clk 0:02:28.9]} 16... cxd4 {[%clk
0:02:47.6]} 17. Bxd3 {[%clk 0:02:25.2]} 17... dxc3 {[%clk 0:02:47.8]} 18. Bxc3
{[%clk 0:02:27.1]} 18... Qc7 {[%clk 0:02:43.9]} 19. Qb3 {[%clk 0:02:25.1]} 19...
Rfd8 {[%clk 0:02:34.4]} 20. Bd4 {[%clk 0:02:20.6]} 20... Nd7 {[%clk 0:02:25.2]}
21. Qxb7 {[%clk 0:02:04.9]} 21... Rdc8 {[%clk 0:02:24.2]} 22. Be4 {[%clk
0:01:50.5]} 22... Qxc4 {[%clk 0:02:07]} 23. Qb5 {[%clk 0:01:29.2]} 23... Rab8
{[%clk 0:01:57.9]} 24. Qxc4 {[%clk 0:01:25.8]} 24... Bxc4 {[%clk 0:01:58.6]} 25.
Rxb8 {[%clk 0:01:26.2]} 25... Rxb8 {[%clk 0:01:58.9]} 26. Rc1 {[%clk 0:01:24.7]}
26... Bb3 {[%clk 0:01:57.6]} 27. Ba7 {[%clk 0:01:00.2]} 27... Rb4 {[%clk
0:01:58.1]} 28. Rc8+ {[%clk 0:00:55.8]} 28... Nf8 {[%clk 0:01:58.9]} 29. f3
{[%clk 0:00:43.3]} 29... f5 {[%clk 0:01:58.5]} 30. Nxf5 {[%clk 0:00:31.7]} 30...
gxf5 {[%clk 0:01:58.3]} 31. Bxf5 {[%clk 0:00:33.6]} 31... Rxa4 {[%clk
0:01:57.4]} 32. Rb8 {[%clk 0:00:29.2]} 32... Ra1+ {[%clk 0:01:54.3]} 33. Kh2
{[%clk 0:00:29.8]} 33... Be5+ {[%clk 0:01:54.2]} 34. f4 {[%clk 0:00:30.2]} 34...
Bxb8 {[%clk 0:01:55.6]} 35. Bxb8 {[%clk 0:00:31]} 35... a4 {[%clk 0:01:54.5]}
36. Be5 {[%clk 0:00:24.9]} 36... Re1 {[%clk 0:01:55]} 37. Kg3 {[%clk 0:00:23.7]}
37... Rxe3+ {[%clk 0:01:53.8]} 38. Kf2 {[%clk 0:00:23.2]} 38... Rxe5 {[%clk
0:01:55.2]} 39. fxe5 {[%clk 0:00:25.1]} 39... a3 {[%clk 0:01:57.1]} 0-1

[Event "*** Titled Tuesday 3|2 Blitz"]
[Site "Chess.com"]
[Date "2015.08.04"]
[Round "3"]
[White "alturas_pacificas"]
[Black "facu57"]
[Result "0-1"]
[WhiteElo "2084"]
[BlackElo "2400"]
[TimeControl "180+2"]
[EndTime "12:06:07 PDT"]
[Termination "facu57 won by checkmate"]

1. d4 {[%clk 0:03:01.9]} 1... c6 {[%clk 0:03:01.9]} 2. Bf4 {[%clk 0:03:01.2]}
2... d5 {[%clk 0:03:03.8]} 3. e3 {[%clk 0:03:01.8]} 3... Nf6 {[%clk 0:03:01.1]}
4. Nf3 {[%clk 0:03:01.2]} 4... g6 {[%clk 0:03:02.3]} 5. h3 {[%clk 0:03:01.8]}
5... Bg7 {[%clk 0:03:02.8]} 6. c4 {[%clk 0:02:59.6]} 6... O-O {[%clk 0:03:03.8]}
7. Nc3 {[%clk 0:02:59.8]} 7... Be6 {[%clk 0:03:04]} 8. Qb3 {[%clk 0:02:55.3]}
8... Qb6 {[%clk 0:03:01.8]} 9. c5 {[%clk 0:02:53.7]} 9... Qxb3 {[%clk
0:03:02.8]} 10. axb3 {[%clk 0:02:55.6]} 10... Nbd7 {[%clk 0:03:00.4]} 11. b4
{[%clk 0:02:56.6]} 11... a6 {[%clk 0:03:00.7]} 12. Nd2 {[%clk 0:02:50.4]} 12...
Nh5 {[%clk 0:02:49.1]} 13. Bh2 {[%clk 0:02:50.5]} 13... f5 {[%clk 0:02:48.5]}
14. Be2 {[%clk 0:02:41]} 14... f4 {[%clk 0:02:42.6]} 15. Bxh5 {[%clk 0:02:26.8]}
15... fxe3 {[%clk 0:02:43.5]} 16. fxe3 {[%clk 0:02:05.3]} 16... gxh5 {[%clk
0:02:43.9]} 17. Nb3 {[%clk 0:02:04.4]} 17... Bf7 {[%clk 0:02:35.9]} 18. Na5
{[%clk 0:01:38.1]} 18... e5 {[%clk 0:02:20.7]} 19. dxe5 {[%clk 0:01:28]} 19...
Nxe5 {[%clk 0:02:21.6]} 20. Bxe5 {[%clk 0:01:08]} 20... Bxe5 {[%clk 0:02:20.7]}
21. Nxb7 {[%clk 0:01:09.5]} 21... Rab8 {[%clk 0:02:08.7]} 22. Na5 {[%clk
0:01:03.4]} 22... Rxb4 {[%clk 0:01:58.7]} 23. Nxc6 {[%clk 0:01:01.9]} 23... Bg3+
{[%clk 0:02:00.2]} 24. Kd1 {[%clk 0:00:49.5]} 24... Rxb2 {[%clk 0:02:02.1]} 25.
Nxd5 {[%clk 0:00:23.3]} 25... Bxd5 {[%clk 0:01:15]} 26. Ne7+ {[%clk 0:00:23.2]}
26... Kh8 {[%clk 0:01:16.6]} 27. Nxd5 {[%clk 0:00:24.7]} 27... Rff2 {[%clk
0:01:18.1]} 28. e4 {[%clk 0:00:14.8]} 28... Rxg2 {[%clk 0:00:56]} 29. c6 {[%clk
0:00:12.2]} 29... Rbc2 {[%clk 0:00:45.8]} 30. c7 {[%clk 0:00:06.9]} 30... Rgd2#
{[%clk 0:00:46]} 0-1

[Event "*** Titled Tuesday 3|2 Blitz"]
[Site "Chess.com"]
[Date "2015.08.04"]
[Round "3"]
[White "Tal-Baronfew"]
[Black "jefferyx"]
[Result "1-0"]
[WhiteElo "2713"]
[BlackElo "2437"]
[TimeControl "180+2"]
[EndTime "12:06:14 PDT"]
[Termination "Tal-Baronfew won by resignation"]

1. d4 {[%clk 0:03:01.9]} 1... b5 {[%clk 0:03:00.6]} 2. e4 {[%clk 0:03:02.3]}
2... a6 {[%clk 0:03:01.7]} 3. Nf3 {[%clk 0:02:58.8]} 3... Bb7 {[%clk 0:03:03.2]}
4. Bd3 {[%clk 0:03:00.2]} 4... e6 {[%clk 0:03:04.8]} 5. O-O {[%clk 0:03:00.7]}
5... Nf6 {[%clk 0:03:06.4]} 6. Re1 {[%clk 0:03:01]} 6... d5 {[%clk 0:03:07.9]}
7. e5 {[%clk 0:02:57.2]} 7... Nfd7 {[%clk 0:03:09.2]} 8. Ng5 {[%clk 0:02:54.5]}
8... Qe7 {[%clk 0:03:10]} 9. a4 {[%clk 0:02:44.3]} 9... b4 {[%clk 0:03:10.5]}
10. c3 {[%clk 0:02:40.3]} 10... c5 {[%clk 0:03:11.2]} 11. Be3 {[%clk 0:02:30.4]}
11... Nc6 {[%clk 0:02:49.9]} 12. Nd2 {[%clk 0:02:23.2]} 12... h6 {[%clk
0:02:29.5]} 13. Qh5 {[%clk 0:02:22.2]} 13... Ncxe5 {[%clk 0:02:05.5]} 14. dxe5
{[%clk 0:02:18.6]} 14... Nxe5 {[%clk 0:02:07.4]} 15. Bc2 {[%clk 0:02:11.6]}
15... g6 {[%clk 0:02:01.9]} 16. Qh3 {[%clk 0:02:10.8]} 16... Bg7 {[%clk
0:02:00.2]} 17. Nxe6 {[%clk 0:02:05.5]} 17... Qxe6 {[%clk 0:01:42.6]} 18. Qxe6+
{[%clk 0:02:06.4]} 18... fxe6 {[%clk 0:01:43.4]} 19. Bxc5 {[%clk 0:02:08]} 19...
bxc3 {[%clk 0:01:44.1]} 20. bxc3 {[%clk 0:02:08.2]} 20... Kf7 {[%clk 0:01:43.1]}
21. Bd4 {[%clk 0:02:06.2]} 21... Rhc8 {[%clk 0:01:03.5]} 22. Bxe5 {[%clk
0:01:54.7]} 22... Bxe5 {[%clk 0:01:04]} 23. Rxe5 {[%clk 0:01:56.4]} 23... Rxc3
{[%clk 0:01:05.6]} 24. Bd1 {[%clk 0:01:57.9]} 24... Rac8 {[%clk 0:01:05.2]} 25.
Re1 {[%clk 0:01:53.8]} 25... Rc1 {[%clk 0:01:02.2]} 26. Bg4 {[%clk 0:01:47.2]}
26... Rxa1 {[%clk 0:01:03.2]} 27. Rxa1 {[%clk 0:01:47.5]} 27... Rc2 {[%clk
0:01:03.6]} 28. Nf3 {[%clk 0:01:46.4]} 28... Kf6 {[%clk 0:00:37.3]} 29. Re1
{[%clk 0:01:46.9]} 29... Bc8 {[%clk 0:00:35.7]} 30. Ne5 {[%clk 0:01:39.4]} 30...
Ra2 {[%clk 0:00:31.5]} 31. Bd1 {[%clk 0:01:40.9]} 31... Ra1 {[%clk 0:00:30.8]}
32. f4 {[%clk 0:01:41.5]} 32... a5 {[%clk 0:00:27.4]} 33. Kf2 {[%clk 0:01:40]}
33... Ba6 {[%clk 0:00:28.3]} 34. Bg4 {[%clk 0:01:30.1]} 34... Rxa4 {[%clk
0:00:26.9]} 35. Nd7+ {[%clk 0:01:27.5]} 35... Kg7 {[%clk 0:00:24.5]} 36. g3
{[%clk 0:01:25.6]} 36... Ra2+ {[%clk 0:00:20.9]} 37. Kg1 {[%clk 0:01:26.8]}
37... d4 {[%clk 0:00:19.8]} 38. Bxe6 {[%clk 0:01:22.1]} 38... Rc2 {[%clk
0:00:17.5]} 39. Bb3 {[%clk 0:01:19.1]} 39... Rc3 {[%clk 0:00:15.2]} 40. Re7+
{[%clk 0:01:18.2]} 40... Kh8 {[%clk 0:00:16.3]} 41. Nf6 {[%clk 0:01:16]} 1-0

[Event "*** Titled Tuesday 3|2 Blitz"]
[Site "Chess.com"]
[Date "2015.08.04"]
[Round "3"]
[White "zmaj23"]
[Black "Hikaru"]
[Result "1-0"]
[WhiteElo "2503"]
[BlackElo "2853"]
[TimeControl "180+2"]
[EndTime "12:06:17 PDT"]
[Termination "zmaj23 won by resignation"]

1. e4 {[%clk 0:03:01.9]} 1... g6 {[%clk 0:03:00.6]} 2. d4 {[%clk 0:03:02.3]}
2... Bg7 {[%clk 0:03:01.3]} 3. Nc3 {[%clk 0:03:02.2]} 3... a6 {[%clk 0:03:02.8]}
4. a4 {[%clk 0:03:02.5]} 4... c6 {[%clk 0:03:01.1]} 5. Be3 {[%clk 0:03:00.6]}
5... d5 {[%clk 0:03:02.3]} 6. f3 {[%clk 0:02:57.3]} 6... dxe4 {[%clk 0:03:01.1]}
7. fxe4 {[%clk 0:02:59.2]} 7... e5 {[%clk 0:03:02.7]} 8. Nf3 {[%clk 0:02:57.7]}
8... Bg4 {[%clk 0:03:03.4]} 9. d5 {[%clk 0:02:55.1]} 9... Nf6 {[%clk 0:02:59.7]}
10. Qd2 {[%clk 0:02:37.7]} 10... Bxf3 {[%clk 0:02:55.1]} 11. gxf3 {[%clk
0:02:37.9]} 11... cxd5 {[%clk 0:02:57]} 12. exd5 {[%clk 0:02:31.6]} 12... O-O
{[%clk 0:02:57.9]} 13. O-O-O {[%clk 0:02:32.4]} 13... b5 {[%clk 0:02:58.7]} 14.
h4 {[%clk 0:02:26.7]} 14... Nbd7 {[%clk 0:02:58.7]} 15. Bh6 {[%clk 0:02:24]}
15... Bxh6 {[%clk 0:02:52.1]} 16. Qxh6 {[%clk 0:02:24.1]} 16... Rc8 {[%clk
0:02:54]} 17. axb5 {[%clk 0:02:18.9]} 17... axb5 {[%clk 0:02:49.5]} 18. Bxb5
{[%clk 0:02:20.8]} 18... Qa5 {[%clk 0:02:40.8]} 19. Bxd7 {[%clk 0:02:10.2]}
19... Rxc3 {[%clk 0:02:28.7]} 20. bxc3 {[%clk 0:01:49.6]} 20... Qxc3 {[%clk
0:02:30.6]} 21. Bc6 {[%clk 0:01:22]} 21... Rb8 {[%clk 0:02:26.6]} 22. h5 {[%clk
0:01:17.1]} 22... Rb2 {[%clk 0:02:22.2]} 23. Qd2 {[%clk 0:01:16.1]} 23... Qa3
{[%clk 0:02:23.3]} 24. Qa5 {[%clk 0:00:47]} 24... Rxc2+ {[%clk 0:02:18.7]} 25.
Kxc2 {[%clk 0:00:48.9]} 25... Qxa5 {[%clk 0:02:20.1]} 26. h6 {[%clk 0:00:48.2]}
26... Kf8 {[%clk 0:02:21.4]} 27. Rhe1 {[%clk 0:00:46.6]} 27... Qc5+ {[%clk
0:02:21.1]} 28. Kb3 {[%clk 0:00:45.8]} 28... Qf2 {[%clk 0:02:18.5]} 29. Rf1
{[%clk 0:00:45.3]} 29... Qe3+ {[%clk 0:02:18.9]} 30. Kc4 {[%clk 0:00:40.8]}
30... Qe2+ {[%clk 0:02:19.5]} 31. Kc5 {[%clk 0:00:40.4]} 31... Qc2+ {[%clk
0:02:20]} 32. Kb6 {[%clk 0:00:39.8]} 32... Ne8 {[%clk 0:02:08.9]} 33. d6 {[%clk
0:00:38.7]} 33... Qb2+ {[%clk 0:01:45.5]} 34. Bb5 {[%clk 0:00:39.3]} 34... Qc3
{[%clk 0:01:47.1]} 35. d7 {[%clk 0:00:36.3]} 35... Qc7+ {[%clk 0:01:44.1]} 36.
Ka6 {[%clk 0:00:37.8]} 36... Nd6 {[%clk 0:01:45.5]} 37. Rxd6 {[%clk 0:00:32.5]}
37... Qxd6+ {[%clk 0:01:47.4]} 38. Kb7 {[%clk 0:00:32.7]} 38... Ke7 {[%clk
0:01:44.6]} 39. Rc1 {[%clk 0:00:33.7]} 39... Qd5+ {[%clk 0:01:43.2]} 40. Kb6
{[%clk 0:00:32.6]} 40... Qd4+ {[%clk 0:01:40.9]} 41. Ka6 {[%clk 0:00:31.5]}
41... Qd6+ {[%clk 0:01:33.8]} 42. Kb7 {[%clk 0:00:32.5]} 42... Qb4 {[%clk
0:01:32.1]} 43. Kb6 {[%clk 0:00:31.6]} 43... e4 {[%clk 0:01:31.7]} 44. Rc8
{[%clk 0:00:30.5]} 44... Qd4+ {[%clk 0:01:30.8]} 45. Kb7 {[%clk 0:00:30.1]}
45... Qd5+ {[%clk 0:01:31.7]} 46. Bc6 {[%clk 0:00:30.1]} 46... Qd6 {[%clk
0:01:24.2]} 1-0

[Event "*** Titled Tuesday 3|2 Blitz"]
[Site "Chess.com"]
[Date "2015.08.04"]
[Round "3"]
[White "Mugzyyy"]
[Black "MattyDPerrine"]
[Result "1-0"]
[WhiteElo "2558"]
[BlackElo "2244"]
[TimeControl "180+2"]
[EndTime "12:06:24 PDT"]
[Termination "Mugzyyy won by resignation"]

1. d4 {[%clk 0:02:50.5]} 1... Nf6 {[%clk 0:02:59.3]} 2. c4 {[%clk 0:02:51.4]}
2... c5 {[%clk 0:02:59.8]} 3. d5 {[%clk 0:02:51.9]} 3... b5 {[%clk 0:03:01.4]}
4. cxb5 {[%clk 0:02:53.2]} 4... a6 {[%clk 0:03:02.7]} 5. e3 {[%clk 0:02:54.4]}
5... g6 {[%clk 0:03:02.7]} 6. Nc3 {[%clk 0:02:55.4]} 6... d6 {[%clk 0:03:04]} 7.
Nf3 {[%clk 0:02:56.4]} 7... Bg7 {[%clk 0:03:05.4]} 8. a4 {[%clk 0:02:57.8]} 8...
O-O {[%clk 0:03:04.1]} 9. e4 {[%clk 0:02:59.2]} 9... axb5 {[%clk 0:02:56.7]} 10.
Bxb5 {[%clk 0:02:59]} 10... Ba6 {[%clk 0:02:58.1]} 11. Ra3 {[%clk 0:02:59.4]}
11... Bxb5 {[%clk 0:02:54.8]} 12. axb5 {[%clk 0:03:01.3]} 12... Nbd7 {[%clk
0:02:55.7]} 13. O-O {[%clk 0:02:59.8]} 13... Qb6 {[%clk 0:02:52.9]} 14. Nd2
{[%clk 0:02:58.4]} 14... Ne5 {[%clk 0:02:37.1]} 15. f4 {[%clk 0:02:56.1]} 15...
c4+ {[%clk 0:02:10.6]} 16. Kh1 {[%clk 0:02:55.8]} 16... Nd3 {[%clk 0:02:11.5]}
17. Qe2 {[%clk 0:02:48.3]} 17... Rxa3 {[%clk 0:02:00.7]} 18. bxa3 {[%clk
0:02:47.4]} 18... Qd4 {[%clk 0:01:54.3]} 19. Ndb1 {[%clk 0:02:39.1]} 19... Qa7
{[%clk 0:00:52]} 20. Be3 {[%clk 0:02:36.8]} 20... Qa5 {[%clk 0:00:53]} 21. Bd4
{[%clk 0:02:35]} 21... h5 {[%clk 0:00:52.1]} 22. Nd2 {[%clk 0:02:17.7]} 22...
Rc8 {[%clk 0:00:40]} 23. Nxc4 {[%clk 0:02:18.4]} 23... Rxc4 {[%clk 0:00:41.9]}
24. Qxd3 {[%clk 0:02:19.9]} 24... Rxd4 {[%clk 0:00:20.7]} 25. Qxd4 {[%clk
0:02:21.1]} 25... Ng4 {[%clk 0:00:22.3]} 26. e5 {[%clk 0:02:18.9]} 26... dxe5
{[%clk 0:00:24.2]} 27. Qc5 {[%clk 0:02:14.3]} 27... exf4 {[%clk 0:00:21.7]} 28.
Ne4 {[%clk 0:02:15.5]} 28... Ne3 {[%clk 0:00:21.4]} 29. Rg1 {[%clk 0:02:16.4]}
29... Ng4 {[%clk 0:00:15.6]} 30. h3 {[%clk 0:02:13.3]} 30... Ne3 {[%clk
0:00:15.5]} 31. b6 {[%clk 0:02:14]} 31... Qa6 {[%clk 0:00:09.2]} 32. d6 {[%clk
0:02:14.2]} 32... exd6 {[%clk 0:00:08]} 33. Nxd6 {[%clk 0:02:15.6]} 33... Qe2
{[%clk 0:00:03.6]} 34. Qc6 {[%clk 0:02:15.3]} 34... Kh7 {[%clk 0:00:02.4]} 35.
b7 {[%clk 0:02:12.8]} 35... Qf2 {[%clk 0:00:03.5]} 36. b8=Q {[%clk 0:02:11.3]}
36... Ng4 {[%clk 0:00:05]} 37. Qf3 {[%clk 0:02:07.2]} 37... Qh4 {[%clk
0:00:05.6]} 38. Rf1 {[%clk 0:02:01.4]} 38... Be5 {[%clk 0:00:06.5]} 39. Nxf7
{[%clk 0:02:01.2]} 39... Bxb8 {[%clk 0:00:07.8]} 40. Qb7 {[%clk 0:01:57.3]}
40... Qg3 {[%clk 0:00:07.2]} 41. hxg4 {[%clk 0:01:50.6]} 41... f3 {[%clk
0:00:06.5]} 42. Nd6+ {[%clk 0:01:25.4]} 42... Kh6 {[%clk 0:00:03.7]} 43. Qxf3
{[%clk 0:01:24.4]} 43... Qh2+ {[%clk 0:00:04.6]} 1-0